bitfinex-derivatives/quotes_ETHF0:USTF0_20220108
["timestamp","ask_amount","ask_price","bid_price","bid_amount"]
[1641667520934,0.638787,3046.9,3046.5,2.00479]
[1641667521434,0.03727137,3046.8,3046.6,0.18634543]
[1641667521937,0.638787,3046.9,3046.6,0.18634543]
[1641667522534,0.03727275,3046.8,3046.6,0.18634543]
[1641667522734,0.03727275,3046.8,3046.0,0.18634543]
[1641667522933,0.03727275,3046.8,3045.9,2.00479]
[1641667522934,0.03727275,3046.8,3046.7,0.18634543]
[1641667523133,0.03727275,3046.8,3045.9,2.00479]
[1641667523336,0.03727275,3046.8,3046.0,0.18636656]
[1641667523536,0.03727275,3046.8,3046.1,1.302757]
[1641667524136,0.638787,3046.9,3046.1,0.66197]
[1641667524435,1.49999999,3046.8,3046.2,0.18635097]
[1641667524737,2.24267255,3046.8,3046.2,0.18635097]
[1641667524935,0.74267256,3046.8,3046.0,0.18635097]
[1641667525136,0.03727256,3046.7,3046.0,0.18635097]
[1641667525335,0.03727256,3046.7,3046.3,0.18635097]
[1641667525736,0.03727256,3046.7,3046.1,0.18635097]
[1641667525939,14.04727256,3046.7,3044.9,0.08205]
[1641667526137,2.00479,3045.8,3044.8,2.00479]
[1641667526738,1.49999999,3045.5,3044.8,2.00479]
[1641667526940,0.638787,3045.4,3044.8,2.00479]
[1641667527139,3.14186896,3045.3,3044.8,2.00479]
[1641667527340,3.22396896,3045.3,3043.7,5.414]
[1641667527538,1.72396897,3045.3,3043.7,5.414]
[1641667527940,1.72396897,3045.3,3044.1,1.5]
[1641667528137,2.00479,3044.9,3044.2,2.00479]
[1641667528339,2.00479,3044.9,3044.3,1.302757]
[1641667529539,2.00479,3044.9,3043.9,2.00479]
[1641667530142,1.49999999,3044.1,3043.7,5.414]
[1641667530340,0.638787,3044.0,3043.7,5.414]
[1641667530540,0.638787,3044.0,3043.0,1.64217095]
[1641667530739,0.638787,3044.0,3042.8,1.6423004]
[1641667531340,1.49999999,3043.9,3042.8,1.6423004]
[1641667531545,1.58213999,3043.8,3042.5,1.01854567]
[1641667531740,0.08215,3043.9,3042.5,1.01854567]
[1641667531940,1.64267,3043.8,3042.1,1.64267]
[1641667532141,2.00479,3043.1,3042.4,2.00479]
[1641667532339,2.00479,3043.1,3042.5,1.302757]
[1641667532640,2.00479,3043.4,3042.5,1.302757]
[1641667532839,2.00479,3043.4,3042.5,1.384907]
[1641667533041,35.0658,3044.2,3043.1,3.14210893]
[1641667533240,0.08212,3044.8,3043.1,1.5]
[1641667533441,1.49999999,3044.9,3043.2,0.08212]
[1641667533642,1.49999999,3044.9,3043.1,1.64209814]
[1641667533643,3.14209813,3044.9,3043.1,1.64209814]
[1641667533940,1.64209814,3044.9,3043.1,1.64209814]
[1641667534141,2.00479,3044.8,3044.0,2.00479]
[1641667534340,0.638787,3044.7,3044.0,2.00479]
[1641667535140,1.49999999,3044.6,3043.3,0.08211]
[1641667535340,1.49999999,3044.6,3042.8,0.08212]
[1641667535541,0.08212,3044.5,3042.6,5.414]
[1641667535741,1.49999999,3044.3,3042.6,5.414]
[1641667536146,2.00479,3043.8,3043.1,2.00479]
[1641667536345,2.00479,3043.8,3043.2,1.302757]
[1641667536545,2.00679,3043.8,3043.2,1.300757]
[1641667536845,2.00679,3043.8,3043.5,1.64189323]
[1641667537045,2.00479,3043.8,3043.5,0.66197]
[1641667537245,1.72440153,3044.8,3043.5,0.66197]
[1641667537446,0.98524743,3045.0,3043.5,0.66197]
[1641667537847,0.0559047,3044.9,3043.5,0.66197]
[1641667538045,2.00479,3044.3,3043.6,2.00479]
[1641667538246,2.00479,3044.6,3043.7,0.66197]
[1641667541254,2.00479,3044.6,3043.8,0.18649152]
[1641667541451,1.49999999,3044.4,3043.8,0.18649152]
[1641667541852,1.64439211,3044.3,3043.8,0.18649152]
[1641667542048,4.00958,3043.9,3043.7,9.152e-05]
[1641667542454,0.002,3043.8,3042.7,2.00479]
[1641667542949,4.00958,3043.9,3042.7,3.64714165]
[1641667543151,4.00958,3043.9,3042.8,0.08214]
[1641667543352,4.00958,3043.9,3042.8,0.18650476]
[1641667544153,2.00479,3043.5,3042.9,1.64224107]
[1641667544354,2.00479,3043.5,3043.0,1.302757]
[1641667544754,2.645577,3043.5,3042.8,0.18650476]
[1641667544954,2.645577,3043.5,3043.1,0.18650476]
[1641667545155,4.14557699,3043.5,3043.1,0.18650476]
[1641667545358,14.01,3043.1,3041.8,0.08215]
[1641667545555,14.01,3043.1,3040.9,1.60381874]
[1641667545556,1.49999999,3041.9,3040.9,1.60381874]
[1641667545757,3.14461511,3041.0,3040.4,2.72978438]
[1641667545955,0.002,3040.9,3040.4,1.55404438]
[1641667546158,4.00958,3040.5,3040.4,1.55404438]
[1641667546357,4.01158,3040.5,3040.4,1.55404438]
[1641667546555,5.51157999,3040.5,3040.2,3.29750422]
[1641667546756,0.638787,3040.4,3040.2,3.29550422]
[1641667546956,1.49999999,3040.3,3039.5,3.80551693]
[1641667547156,1.49999999,3040.1,3039.5,3.80551693]
[1641667547357,1.49999999,3040.2,3039.5,3.80551693]
[1641667547558,1.64503717,3039.6,3039.5,3.80551693]
[1641667547758,0.08223,3039.8,3038.6,5.01190475]
[1641667547956,1.49999999,3039.9,3038.8,1.10092339]
[1641667548159,4.00958,3038.9,3038.8,1.10092339]
[1641667548559,42.80098793,3038.9,3038.8,1.10092339]
[1641667548760,41.7944671,3038.9,3038.8,1.10092339]
[1641667549260,41.1556801,3038.9,3038.8,1.10092339]
[1641667549460,4.00958,3038.9,3038.8,1.10092339]
[1641667549658,0.08226,3040.2,3038.8,1.76289339]
[1641667549859,1.49999999,3040.5,3038.8,1.76289339]
[1641667550159,0.07691613,3040.1,3039.3,2.00479]
[1641667550363,0.08223,3041.0,3040.0,3.14358795]
[1641667550559,0.08222,3041.8,3039.3,2.00479]
[1641667550759,35.78812,3042.6,3039.9,1.5]
[1641667550959,0.83455516,3040.2,3039.4,6.25068601]
[1641667551159,0.07685134,3041.7,3040.0,5.2616]
[1641667551359,4.13429609,3042.2,3040.0,5.2616]
[1641667551561,4.13429609,3042.2,3040.1,1.5]
[1641667551761,4.13429609,3042.2,3040.2,1.5]
[1641667551960,4.13429609,3042.2,3040.1,5.261686]
[1641667552160,4.13429609,3042.2,3041.2,2.00479]
[1641667552362,1.64553796,3041.6,3041.3,0.66197]
[1641667552562,2.00479,3042.4,3041.3,0.66197]
[1641667552761,2.160364,3041.9,3041.3,0.66197]
[1641667553062,2.160364,3041.9,3040.9,2.00479]
[1641667553663,2.160364,3041.9,3041.0,1.5]
[1641667553861,2.160364,3041.9,3040.9,2.00479]
[1641667554066,2.00479,3041.7,3041.2,1.5]
[1641667554262,0.9071,3041.9,3041.3,1.302757]
[1641667554462,0.9071,3041.9,3041.3,2.097957]
[1641667554661,2.06442075,3043.4,3041.8,1.5]
[1641667554862,1.64760874,3043.4,3041.3,2.49452559]
[1641667555062,1.64760874,3043.4,3041.4,5.260389]
[1641667555267,1.64760874,3043.4,3042.3,1.64255667]
[1641667555665,1.49999999,3043.0,3042.3,1.64255667]
[1641667555865,1.255264,3042.9,3042.4,0.66197]
[1641667556065,1.64760874,3043.4,3042.7,1.64235974]
[1641667556365,2.00479,3043.8,3042.8,3.25503]
[1641667556566,1.49999999,3043.4,3042.8,2.00479]
[1641667556965,0.614477,3043.3,3042.8,2.00479]
[1641667557167,2.00479,3043.8,3042.8,2.00479]
[1641667557367,1.49999999,3043.6,3042.8,2.00479]
[1641667557567,0.614477,3043.5,3042.8,2.00479]
[1641667557767,0.640787,3043.4,3042.8,2.00479]
[1641667558267,0.614477,3043.3,3042.8,2.00479]
[1641667558866,0.614477,3043.3,3042.8,2.59306]
[1641667559068,0.614477,3043.3,3042.8,3.25503]
[1641667559268,0.614477,3043.3,3042.8,2.00479]
[1641667559469,2.11447699,3043.3,3042.2,1.64262143]
[1641667559669,0.614477,3043.3,3042.2,1.64262143]
[1641667559870,0.614477,3043.3,3040.3,1.18408261]
[1641667560069,2.00479,3042.1,3041.4,2.00479]
[1641667560272,1.255264,3042.0,3041.3,1.64311535]
[1641667560470,2.00479,3042.1,3041.4,0.66197]
[1641667560669,2.00479,3042.1,3041.6,1.64293448]
[1641667560870,2.00479,3042.1,3041.7,0.58827]
[1641667561070,2.00479,3042.1,3041.8,0.66197]
[1641667561470,2.00479,3042.1,3041.8,0.84858726]
[1641667561871,2.00479,3042.1,3041.9,0.18661726]
[1641667562071,1.49999999,3043.2,3042.0,0.66197]
[1641667562272,2.00479,3042.8,3042.0,2.66676]
[1641667562472,2.00479,3042.8,3042.1,0.18661726]
[1641667562671,2.00479,3042.8,3042.2,0.66197]
[1641667562871,0.640787,3042.7,3042.2,1.25024]
[1641667563272,0.614477,3042.6,3042.1,0.18661726]
[1641667563474,0.614477,3042.6,3042.3,0.18661726]
[1641667563770,0.614477,3042.6,3042.2,0.66197]
[1641667563972,2.00479,3042.8,3042.4,0.18661726]
[1641667564575,2.00479,3042.8,3042.3,0.84858726]
[1641667564975,2.00479,3042.8,3042.4,0.18661726]
[1641667565173,2.645577,3042.8,3042.5,0.66197]
[1641667565774,2.00479,3042.8,3042.6,0.18661726]
[1641667566173,2.00479,3042.8,3042.7,0.66197]
[1641667566778,2.00479,3042.8,3042.7,0.84858726]
[1641667567777,2.00479,3042.8,3042.5,0.047493]
[1641667567977,1.43749,3042.8,3042.5,0.047493]
[1641667568179,2.00479,3043.5,3042.7,3.64713895]
[1641667568380,2.00479,3043.5,3042.8,0.047493]
[1641667568780,2.00479,3043.5,3042.9,1.64222758]
[1641667568980,1.37514846,3044.3,3043.0,0.635763]
[1641667569182,35.56039999,3045.0,3043.9,1.64170185]
[1641667569385,1.64170185,3045.6,3043.9,1.64170185]
[1641667569583,2.13490185,3045.6,3043.9,1.64170185]
[1641667569783,0.10764398,3044.9,3044.0,0.18654815]
[1641667570284,2.00479,3044.5,3044.0,0.18654815]
[1641667570483,2.00479,3044.5,3044.1,0.047493]
[1641667570484,0.640787,3044.4,3044.1,0.047493]
[1641667570684,2.00479,3044.5,3044.1,0.047493]
[1641667571085,2.00479,3044.5,3043.8,0.00155166]
[1641667571285,0.10763241,3044.4,3043.8,0.00155166]
[1641667571584,2.00479,3044.5,3043.8,0.00155166]
[1641667572285,2.00479,3044.5,3044.3,1.5]
[1641667572486,2.00479,3044.8,3044.1,0.98549139]
[1641667572784,1.35638874,3045.6,3044.7,1.5]
[1641667572985,1.35638874,3045.6,3044.4,0.98540729]
[1641667573185,0.8150048,3044.9,3044.4,0.98540729]
[1641667573385,0.8150048,3044.9,3044.8,1.5]
[1641667573586,0.8150048,3044.9,3044.8,0.7182]
[1641667574188,0.8150048,3045.5,3044.8,4.72778]
[1641667574787,0.8150048,3045.5,3045.2,1.5]
[1641667574988,1.35638874,3046.0,3045.4,1.5]
[1641667575387,1.35438874,3046.0,3045.5,0.58827]
[1641667575890,1.35438874,3046.2,3045.5,2.08827]
[1641667576089,1.35438874,3046.2,3045.5,0.58827]
[1641667576288,1.35438874,3046.2,3046.1,2.00479]
[1641667577488,0.69915498,3046.3,3046.1,2.00479]
[1641667577889,1.62766649,3046.4,3046.2,0.58827]
[1641667578089,2.00479,3046.8,3046.1,1.65983098]
[1641667578688,1.2232358,3047.2,3046.7,1.5]
[1641667578891,0.56646649,3047.3,3047.0,1.5]
[1641667579090,3.39097185,3048.0,3047.0,1.5]
[1641667579295,1.64181289,3047.6,3047.0,1.5]
[1641667579492,1.59431289,3047.6,3047.5,1.5]
[1641667580292,1.59431289,3047.6,3047.5,5.50958]
[1641667580492,1.59431289,3047.6,3047.5,6.75823718]
[1641667580794,2.67537011,3047.8,3046.1,3.09046819]
[1641667580993,0.640787,3047.8,3046.1,3.09046819]
[1641667581193,0.640787,3047.8,3046.1,1.42644304]
[1641667581594,0.640787,3047.8,3046.2,5.251152]
[1641667581795,0.640787,3047.8,3045.4,0.503]
[1641667581796,1.5,3047.4,3045.4,2.003]
[1641667582093,2.140787,3047.8,3045.6,1.5]
[1641667582295,2.00479,3046.6,3045.9,2.00479]
[1641667582893,0.640787,3046.5,3045.9,2.00479]
[1641667583294,2.00479,3046.6,3045.9,3.50479]
[1641667583696,2.00479,3046.6,3045.9,2.00479]
[1641667583893,2.00479,3046.6,3046.2,1.5]
[1641667584094,35.3539,3048.0,3046.5,1.5]
[1641667584293,2.00479,3047.4,3046.7,2.00479]
[1641667586192,2.00479,3047.4,3046.8,0.18632541]
[1641667586795,2.00479,3047.4,3046.6,1.59556864]
[1641667587193,2.00479,3047.4,3046.2,1.5]
[1641667587392,2.00479,3047.4,3046.5,1.5]
[1641667587597,2.00479,3047.4,3046.2,2.68177796]
[1641667587992,2.00479,3047.4,3046.3,0.18632405]
[1641667588192,2.00479,3047.4,3046.4,2.00479]
[1641667588594,1.5,3047.2,3046.5,0.18632405]
[1641667588793,1.302757,3047.1,3046.5,0.18632405]
[1641667589194,1.302757,3047.1,3046.0,0.18632405]
[1641667589793,0.640787,3047.1,3046.0,1.68632405]
[1641667590196,2.00479,3047.4,3046.8,2.00479]
[1641667590595,2.00479,3047.4,3046.9,0.18632405]
[1641667590998,2.645577,3047.4,3046.9,0.18632405]
[1641667591196,3.307547,3047.4,3046.9,0.18632405]
[1641667591396,4.807547,3047.4,3046.9,0.18632405]
[1641667591597,0.13676051,3047.3,3046.0,0.18632405]
[1641667591796,1.76396582,3047.3,3046.2,1.5]
[1641667591996,1.76396582,3047.3,3046.0,0.18632405]
[1641667592498,2.00479,3046.7,3046.2,0.98481783]
[1641667593198,2.00479,3046.7,3046.3,0.18632405]
[1641667594097,1.58205,3048.4,3046.6,0.98467895]
[1641667594098,1.38418303,3047.7,3046.6,0.98467895]
[1641667594298,2.00479,3047.6,3046.9,2.00479]
[1641667594699,2.00479,3047.6,3046.9,2.9893731]
[1641667595000,2.00479,3047.6,3047.0,0.18632405]
[1641667597399,0.66197,3047.5,3047.0,0.18632405]
[1641667597602,1.302757,3047.5,3047.0,0.18632405]
[1641667598301,2.00479,3047.1,3047.0,0.18632405]
[1641667598502,2.66676,3047.1,3046.2,0.18632405]
[1641667598702,2.66676,3047.1,3046.1,0.98485172]
[1641667599607,1.5,3046.2,3044.5,36.51708966]
[1641667599809,1.5,3046.7,3044.5,36.51708966]
[1641667600007,1.58208,3046.7,3044.5,1.66658966]
[1641667600208,2.00479,3047.1,3047.0,1.59606479]
[1641667600410,2.645577,3047.1,3046.5,4.01893599]
[1641667600607,2.645577,3047.1,3046.5,2.00479]
[1641667601108,2.00479,3047.1,3046.5,2.00479]
[1641667601307,2.00479,3047.1,3046.6,1.64023429]
[1641667601708,2.00479,3047.1,3046.5,0.66435833]
[1641667601908,2.66676,3047.1,3046.5,0.66435833]
[1641667602307,3.307547,3047.1,3046.5,0.66435833]
[1641667602907,3.307547,3047.1,3046.2,2.00479]
[1641667603908,2.645577,3047.1,3046.5,1.64000833]
[1641667604111,2.00479,3047.1,3046.5,1.64000833]
[1641667604308,2.00479,3047.1,3046.6,2.00479]
[1641667606812,1.58089742,3048.1,3046.6,3.50479]
[1641667607015,1.5,3048.4,3046.6,3.50479]
[1641667607415,1.5,3048.4,3046.7,0.98467027]
[1641667607612,1.5,3048.4,3046.8,0.08204]
[1641667608013,106.1389,3048.6,3046.8,0.08204]
[1641667608215,1.5,3048.4,3046.8,0.08204]
[1641667608414,0.640787,3047.5,3047.0,2.00479]
[1641667608613,1.302757,3047.5,3047.0,2.00479]
[1641667608814,1.302757,3047.5,3046.7,0.98467027]
[1641667608815,1.44147337,3047.5,3046.7,0.98467027]
[1641667609014,0.13871637,3047.4,3046.8,1.63985773]
[1641667609417,0.13871637,3047.4,3046.7,0.98467027]
[1641667609715,0.66197,3047.3,3046.6,3.50479]
[1641667609916,0.66197,3047.3,3046.0,1.0669216]
[1641667610118,0.66197,3047.3,3046.0,0.08204]
[1641667610316,2.00479,3046.8,3046.1,2.00479]
[1641667611118,1.302757,3046.7,3046.1,2.00479]
[1641667611317,2.00479,3046.8,3046.1,2.00479]
[1641667611718,0.66197,3046.7,3045.0,1.72271756]
[1641667611917,0.66197,3046.7,3045.4,2.16714302]
[1641667612320,2.00479,3046.1,3045.5,0.08207]
[1641667613118,0.640787,3046.0,3045.5,0.08207]
[1641667613321,0.640787,3046.0,3045.3,2.00479]
[1641667613919,0.66197,3045.9,3045.6,0.18637937]
[1641667614319,2.00479,3045.7,3045.1,7.937e-05]
[1641667614521,0.66197,3045.6,3045.1,7.937e-05]
[1641667614720,1.5,3045.3,3043.8,0.08208]
[1641667614925,0.66197,3045.6,3043.2,1.18292693]
[1641667614926,1.5,3045.0,3043.4,1.64168299]
[1641667615121,1.5,3044.8,3043.4,1.64168299]
[1641667615721,1.5,3044.8,3043.5,0.18647885]
[1641667616321,2.00479,3043.9,3043.3,0.18647885]
[1641667616821,2.00479,3043.9,3043.6,0.18647885]
[1641667617022,2.00479,3043.9,3043.4,0.18647885]
[1641667617527,2.00479,3043.9,3043.2,0.18647885]
[1641667617722,2.645577,3043.9,3043.5,0.18647885]
[1641667617922,0.66197,3043.8,3043.5,0.18647885]
[1641667618327,0.66197,3043.8,3042.8,2.00479]
[1641667618328,2.00479,3043.7,3043.2,0.18647885]
[1641667618524,2.00479,3043.7,3043.6,0.18647885]
[1641667618825,2.66676,3043.7,3043.3,0.18647885]
[1641667619224,2.00479,3043.7,3043.6,0.18647885]
[1641667619423,2.00479,3043.7,3043.4,0.18647885]
[1641667619824,2.00479,3043.7,3043.6,0.18647885]
[1641667620022,2.00479,3043.7,3043.5,0.18647885]
[1641667620622,2.00479,3043.7,3043.2,0.18647885]
[1641667620823,2.00479,3043.7,3043.6,0.18647885]
[1641667621226,2.00479,3043.9,3043.5,1.5]
[1641667621426,0.82277109,3045.0,3043.8,1.64136233]
[1641667621624,0.82277109,3045.0,3044.2,1.5]
[1641667621825,0.82277109,3045.0,3043.6,1.36928694]
[1641667621826,0.82277109,3045.0,3044.7,1.64098255]
[1641667622226,0.82277109,3045.2,3044.7,1.64098255]
[1641667622424,0.82277109,3045.2,3044.7,2.00479]
[1641667622625,0.82277109,3045.2,3044.8,0.18647885]
[1641667623627,2.00479,3045.4,3044.9,0.99155007]
[1641667623828,0.82277109,3046.3,3045.3,2.49140846]
[1641667624026,0.82277109,3046.3,3045.3,2.63183648]
[1641667624326,0.82277109,3046.3,3045.7,2.00479]
[1641667624530,0.640787,3046.2,3045.7,2.00479]
[1641667624730,0.82277109,3046.3,3045.9,1.23684417]
[1641667625328,2.00479,3046.4,3046.3,0.49480028]
[1641667625526,2.00479,3046.4,3046.0,1.90863133]
[1641667625729,2.00479,3046.4,3046.3,0.18647885]
[1641667626126,2.00479,3046.4,3046.1,0.18647885]
[1641667626527,2.645577,3046.4,3046.1,0.18647885]
[1641667626727,2.00479,3046.4,3046.1,1.68647885]
[1641667626927,1.36466206,3047.2,3046.3,3.14003254]
[1641667627228,1.36466206,3047.2,3046.8,2.77915368]
[1641667627426,1.36466206,3047.2,3046.9,0.08204]
[1641667627628,1.36466206,3047.6,3046.9,5.333106]
[1641667627828,0.66197,3047.5,3047.1,1.63969102]
[1641667628130,0.66197,3047.5,3047.2,0.18647885]
[1641667628527,0.640787,3047.4,3047.2,0.18647885]
[1641667629029,0.66197,3047.3,3047.0,2.00479]
[1641667629228,2.00479,3047.8,3047.0,2.00479]
[1641667629728,0.66197,3047.7,3047.0,2.00479]
[1641667630326,0.17796676,3047.6,3047.1,0.18631585]
[1641667630528,0.83993676,3047.6,3047.1,0.18631585]
[1641667630727,0.640787,3047.5,3047.1,0.18631585]
[1641667631427,1.302757,3047.5,3047.1,0.18631585]
[1641667631927,0.17797003,3047.4,3047.1,0.18631585]
[1641667632327,1.302757,3047.5,3047.1,0.18631585]
[1641667632927,1.302757,3047.5,3047.0,1.83845515]
[1641667633428,0.640787,3047.5,3047.0,1.83845515]
[1641667633627,2.00479,3047.8,3047.0,1.83845515]
[1641667633832,2.00479,3047.8,3047.1,0.98451744]
[1641667634132,0.640787,3047.7,3047.1,0.98451744]
[1641667634530,0.18630717,3047.7,3047.2,0.1741628]
[1641667634730,2.00479,3047.8,3047.6,0.98436757]
[1641667635332,1.36466206,3048.0,3047.7,1.6741628]
[1641667635532,1.36466206,3048.2,3047.9,2.48426757]
[1641667635732,0.38053001,3048.2,3048.0,0.08201]
[1641667636031,0.4304027,3048.6,3048.0,0.1741628]
[1641667636231,0.3435027,3048.6,3048.1,1.58201]
[1641667636431,0.3415027,3048.6,3048.5,2.00479]
[1641667636633,0.3415027,3048.6,3048.5,3.64367752]
[1641667636831,0.3415027,3048.6,3048.5,3.81784032]
[1641667637031,2.03458311,3048.7,3048.5,3.81784032]
[1641667637431,2.71277748,3048.9,3048.5,3.81784032]
[1641667637632,2.00479,3049.2,3048.5,3.81784032]
[1641667637832,2.00479,3049.2,3048.6,0.1741628]
[1641667638030,0.18622777,3049.1,3048.6,0.1741628]
[1641667639134,0.7098042,3049.1,3048.6,0.1741628]
[1641667639332,0.7098042,3049.1,3048.8,1.5]
[1641667639532,0.52357643,3049.1,3048.8,1.5]
[1641667639933,0.52357643,3049.1,3048.9,0.1741628]
[1641667640337,2.03458311,3049.9,3049.0,1.5]
[1641667640633,2.63277748,3050.1,3049.8,7.14746359]
[1641667640834,4.06916622,3051.0,3049.8,7.14746359]
[1641667640835,1.74267623,3050.3,3050.0,1.5]
[1641667641133,2.75903497,3050.5,3050.0,1.5]
[1641667641134,2.5471112,3050.5,3050.2,1.5]
[1641667641333,1.7038112,3050.5,3050.3,0.08194]
[1641667641533,0.7382112,3050.5,3050.4,1.5]
[1641667641736,0.7382112,3050.5,3050.4,1.58194]
[1641667641933,2.08668305,3050.8,3050.4,8.46431505]
[1641667642134,2.08668305,3050.8,3050.7,1.5]
[1641667642534,2.08668305,3050.8,3050.7,9.254191]
[1641667642734,3.91305604,3051.0,3050.7,9.254191]
[1641667642934,0.143487,3051.0,3050.7,9.4283538]
[1641667643135,0.143487,3051.0,3050.8,0.1741628]
[1641667643337,0.84808558,3050.9,3050.8,0.1741628]
[1641667643536,0.18611558,3050.9,3050.8,0.6714628]
[1641667643735,0.18611558,3050.9,3050.8,0.7534028]
[1641667643935,2.00479,3052.5,3050.8,5.9978428]
[1641667644237,0.18607147,3052.4,3051.0,1.5]
[1641667644435,0.18607147,3052.4,3051.6,2.00479]
[1641667644635,1.5,3052.0,3051.6,2.00479]
[1641667644836,0.640787,3051.9,3051.7,0.1741628]
[1641667645038,0.66197,3051.9,3051.7,0.1741628]
[1641667645236,0.18607147,3051.8,3051.7,0.1741628]
[1641667645938,0.18607147,3052.4,3051.7,0.8361328]
[1641667646138,0.82685691,3052.5,3051.7,0.8361328]
[1641667646338,0.82685691,3052.5,3052.0,1.63708455]
[1641667646537,0.82685691,3052.5,3052.3,2.00479]
[1641667646740,0.82685691,3052.5,3052.4,0.08189]
[1641667646938,0.82685691,3052.5,3052.4,5.4978288]
[1641667647139,0.82685691,3052.5,3052.4,6.1597988]
[1641667647338,0.82685691,3052.5,3052.4,7.79664754]
[1641667647539,0.82685691,3052.5,3052.4,9.79394754]
[1641667647740,1.65371382,3053.2,3052.4,9.29664754]
[1641667648039,0.17055691,3054.1,3052.4,9.29664754]
[1641667648438,2.17534691,3054.1,3053.4,2.00479]
[1641667648639,0.66197,3054.0,3053.5,0.66197]
[1641667649041,2.17534691,3054.1,3053.5,0.8361328]
[1641667649242,2.00479,3054.1,3053.6,0.1741628]
[1641667649440,2.00479,3054.4,3053.9,1.63606409]
[1641667649639,35.71303274,3055.3,3053.9,1.63606409]
[1641667649841,34.0768,3055.3,3054.2,1.63588477]
[1641667650445,2.00479,3055.2,3054.5,2.00479]
[1641667650643,2.00479,3055.2,3054.6,0.66197]
[1641667650843,2.00479,3055.2,3054.6,0.8361328]
[1641667651042,2.00479,3055.2,3054.6,2.47180618]
[1641667651443,2.00479,3055.2,3054.7,5.4116498]
[1641667651642,1.65371382,3055.9,3054.7,5.4116498]
[1641667651643,1.65371382,3055.9,3054.8,0.66197]
[1641667651845,1.37809485,3056.5,3054.9,0.08182]
[1641667652042,1.37809485,3056.5,3055.4,1.63524008]
[1641667652443,1.37809485,3056.5,3055.9,2.00479]
[1641667652643,2.01888185,3056.5,3056.0,0.66197]
[1641667653042,2.16197,3056.4,3055.9,2.00479]
[1641667653244,1.5,3056.0,3055.2,0.08179]
[1641667653443,1.5,3056.4,3054.8,1.63557707]
[1641667653641,3.65445892,3056.5,3054.8,1.63557707]
[1641667653846,1.5,3056.4,3055.3,0.1717341]
[1641667654044,1.5,3056.4,3054.9,0.1717341]
[1641667654243,1.5,3056.4,3055.2,1.63533367]
[1641667654644,2.00479,3055.7,3055.2,1.63533367]
[1641667654843,2.00479,3055.7,3055.3,1.3310041]
[1641667655143,9.99999999,3055.4,3054.7,0.0818]
[1641667655344,1.5,3054.8,3053.8,0.0818]
[1641667655645,1.5,3054.8,3053.6,0.08185]
[1641667655845,12.00478999,3055.7,3053.6,0.08185]
[1641667655846,1.5,3054.5,3053.6,0.08185]
[1641667656046,1.5,3054.3,3053.6,0.08185]
[1641667656245,0.66197,3054.2,3052.6,0.08186]
[1641667656846,0.66197,3054.2,3052.0,0.08186]
[1641667656847,1.5,3053.8,3052.0,0.08186]
[1641667657057,1.63686481,3054.1,3052.4,1.63686481]
[1641667657349,2.00479,3054.3,3053.4,1.63633716]
[1641667657548,2.00479,3054.3,3053.5,0.08186]
[1641667657749,2.00479,3054.3,3053.6,1.15927]
[1641667657950,2.00479,3054.6,3053.6,1.15927]
[1641667658153,2.00479,3054.6,3053.9,1.63604267]
[1641667658351,2.00479,3054.6,3054.0,0.74382]
[1641667658552,2.00479,3054.6,3054.1,2.00479]
[1641667658752,2.00479,3055.2,3054.1,2.00479]
[1641667658753,2.00479,3055.2,3054.2,1.71773744]
[1641667658951,1.5,3054.8,3054.2,5.32028]
[1641667659151,1.302757,3054.7,3054.1,2.00479]
[1641667659350,0.640787,3054.7,3054.2,0.66197]
[1641667659652,1.302757,3054.7,3054.1,2.00479]
[1641667659853,0.66197,3054.7,3054.2,1.15927]
[1641667660657,2.00479,3054.5,3054.2,1.15927]
[1641667661365,1.5,3054.4,3054.2,0.4973]
[1641667661559,1.5,3054.4,3053.2,0.08185]
[1641667661856,0.18593504,3054.3,3053.2,0.08185]
[1641667662056,0.18593504,3054.3,3053.1,0.08186]
[1641667662258,0.18593504,3054.3,3053.5,0.98245877]
[1641667662456,0.66197,3054.2,3053.5,0.98245877]
[1641667662657,2.00479,3053.6,3053.5,0.98245877]
[1641667663056,2.00479,3053.6,3053.3,0.08186]
[1641667663257,2.00479,3053.6,3052.9,3.64136818]
[1641667663462,1.302757,3053.5,3052.9,3.64136818]
[1641667663862,2.802757,3053.5,3052.9,3.64136818]
[1641667664263,1.5,3053.2,3052.9,1.63657818]
[1641667664463,0.66197,3053.1,3052.2,0.08187]
[1641667664664,2.00479,3052.6,3052.1,0.9829174]
[1641667664866,2.00479,3052.6,3052.2,0.4973]
[1641667665964,3.50479,3052.6,3051.9,2.08668]
[1641667666164,0.66197,3052.5,3051.9,2.00479]
[1641667667064,0.66197,3052.5,3051.9,2.50209]
[1641667667265,0.66197,3052.5,3051.9,3.16406]
[1641667667764,0.66197,3052.5,3051.9,2.00479]
[1641667668766,0.66197,3052.5,3051.9,2.66676]
[1641667669069,2.00479,3052.6,3052.0,0.4973]
[1641667669266,2.00479,3052.6,3052.1,0.08189]
[1641667669467,1.68889,3052.6,3052.1,0.74386]
[1641667670068,2.329677,3052.6,3052.1,0.74386]
[1641667670268,2.991647,3052.6,3052.1,0.74386]
[1641667670467,2.991647,3052.6,3052.2,0.152943]
[1641667671068,2.991647,3052.6,3052.0,0.152943]
[1641667671268,2.991647,3052.6,3052.3,0.152943]
[1641667671667,2.991647,3052.6,3052.1,0.152943]
[1641667672069,1.68889,3052.6,3052.1,1.15927]
[1641667672271,1.68889,3052.6,3052.2,0.152943]
[1641667672471,1.68889,3052.6,3052.5,0.98277308]
[1641667672870,1.68889,3052.6,3052.3,0.74386]
[1641667673072,3.829677,3052.6,3052.2,0.152943]
[1641667673272,2.329677,3052.6,3052.5,0.152943]
[1641667673471,3.829677,3052.6,3052.5,0.152943]
[1641667673675,3.829677,3052.6,3052.0,4.3e-05]
[1641667673974,0.66197,3052.5,3051.5,0.56709]
[1641667674172,1.5,3051.6,3051.1,0.0819]
[1641667674373,0.66197,3051.5,3050.7,1.18002014]
[1641667674575,2.00479,3050.8,3050.7,1.18002014]
[1641667675175,2.00479,3050.8,3050.7,0.13772724]